{"text_format":"1","workbook":"xlsx","n_sheets":1,"sheets":["Sheet"],"not_rendered":{"charts":0,"images":2,"macros":1,"external_links":0,"defined_names":0,"comments":0,"pivot_tables":0},"unopened":[],"bounds":{"document_bytes":16777216,"sheet_cells":100000,"rows_first":2000,"rows_last":500,"rows_between":2000,"halvings":0,"cell_chars":16384,"cell_head_chars":4096},"cells_cut":0,"cells_raw":0,"read":"whole","date_system":"1900"}

{"sheet":"Sheet","index":0,"n_rows":60,"n_cols":24,"rows_kept":60,"cut":false,"hidden":false,"merged":[[35,18,35,19],[39,16,39,23],[40,20,40,23],[41,20,41,23],[49,20,49,23],[42,20,42,23],[43,20,43,23],[44,20,44,23],[33,18,33,19],[32,18,32,19],[50,20,50,23],[45,20,45,23],[46,20,46,23],[47,20,47,23],[35,20,35,23],[34,18,34,19],[33,20,33,23],[34,20,34,23],[48,20,48,23],[27,20,27,23],[28,20,28,23],[30,20,30,23],[32,20,32,23],[28,18,28,19],[30,18,30,19],[27,18,27,19],[29,18,29,19],[31,18,31,19],[29,20,29,23],[31,20,31,23],[26,16,26,23],[19,18,19,19],[20,18,20,19],[21,18,21,19],[22,18,22,19],[23,18,23,19],[23,22,23,23],[22,22,22,23],[21,22,21,23],[20,22,20,23],[19,22,19,23],[5,16,6,19],[5,20,6,23],[11,13,11,14],[12,4,12,14],[17,20,17,23],[17,16,17,19],[8,16,8,17],[8,20,8,21],[4,16,4,23],[15,16,16,23],[1,16,2,23],[53,9,53,14],[59,9,59,14],[4,0,4,14],[5,1,7,1],[5,3,5,14],[6,3,6,14],[7,3,7,14],[14,11,14,14],[9,0,9,14],[10,11,10,14],[13,2,13,14],[11,9,11,11],[11,1,11,8],[56,0,56,7],[52,9,52,14],[15,4,15,5],[15,13,15,14],[15,9,15,10],[43,0,43,2],[43,3,43,8],[43,9,43,11],[35,1,35,8],[19,1,19,4],[16,1,16,8],[32,1,32,8],[34,1,34,8],[33,1,33,8]]}
[]
[null,null,null,null,null,null,null,null,null,null,null,null,null,null,null,null,"Back Side"]
[]
[]
["Remuneration Bill",null,null,null,null,null,null,null,null,null,null,null,null,null,null,null,"Assessing Answer Scripts of Theory Exams"]
[null,null,null,"THE BENAZIR BHUTTO SHAHEED",null,null,null,null,null,null,null,null,null,null,null,null,"Detail of Candidates per paper (3 CH paper)",null,null,null,"Detail of Candidates per paper (2 CH paper)"]
[null,null,null,"UNIVERSITY OF TECHNOLOGY AND SKILL DEVELOPMENT "]
[null,null,null,"KHAIRPUR MIRS",null,null,null,null,null,null,null,null,null,null,null,null,"S.No","Name of Subject","no. of candidates",null,"S.No","Name of Subject","no. of candidates"]
["1.      Every bill should be affixed with necessary Revenue stamps. ",null,null,null,null,null,null,null,null,null,null,null,null,null,null,null,null,null,"Mid Term","Final",null,null,"Mid Term","Final"]
["2.      The claims of Paper Setting (Theory/Practical) should be enclosed with the copies of Question / Objective Papers ",null,null,null,null,null,null,null,null,null,null,null,null,null,null,null,1,null,null,null,1]
[null,"Semester ",null,null,"Year","Regular / Supplementary Examination held in     ",null,null,null,null,null,null,null,null,null,null,2,null,null,null,2]
["Name with Designation",null,null,null,null,null,null,null,null,"Bank A/C No.",null,null,null,null,null,null,3,null,null,null,3]
["Designation & Address: ",null,null,null,null,null,null,null,null,null,null,null,null,null,null,null,4,null,null,null,4]
["Subject: ",null,null,null,null,null,null,null,null,null,null,null,null,null,null,null,null,null,{"$f":"SUM(S10:S13)","v":0},{"$f":"SUM(T10:T13)","v":0},null,null,{"$f":"SUM(W10:W13)","v":0},{"$f":"SUM(X10:X13)","v":0}]
["Date of Conduct of Exam: Theory"]
["Appointment Letter No:",null,null,null,null,null,"BBSUTSD/  EXAMS / ",null,null,null,null,"Dated:",null,null,null,null,"Conduct of Viva-Voce and Practical Examination     (FINAL)"]
["S,No","Description ",null,null,null,null,null,null,null,null,"No. of Papers","Rate","Minimum Rate","No. of\nCandidates","Total amount \nin Rs."]
[1,"Paper Setting / Moderation of (Final)",null,null,null,"(Theory) ",null,null,null,"Per Paper",null,2000,null,"--",{"$f":"L18*K18","v":0},null,"Detail of Candidates of final practical (100 marks practical)",null,null,null,"Detail of Candidates of final practical (50 marks practical)"]
[2,"Paper Setting / Moderation of (Mid Term)",null,null,null,"(Theory) ",null,null,null,"Per Paper",null,800,null,"--",{"$f":"L19*K19","v":0},null,"S.No.","Name of Subject","no. of candidates",null,"S.No","Name of Subject","no. of candidates"]
[3,"Paper Setting of Final Practical ",null,null,null,null,null,null,null,"Per Paper",null,1300,null,"--",{"$f":"L20*K20","v":0},null,1,null,null,null,1]
[4,"Assessing Answer Scripts (Mid Term, 3 CH)",null,null,null,"(Theory) ",null,null,null,"Per Script","--",25,500,{"$f":"S14","v":0},{"$f":"IF((N21*L21)>=M21,N21*L21,M21)","v":500},null,2,null,null,null,2]
[5,"Assessing Answer Scripts (Mid Term, 2 CH)",null,null,null,"(Theory) ",null,null,null,"Per Script","--",15,300,{"$f":"W14","v":0},{"$f":"IF((N22*L22)>=M22,N22*L22,M22)","v":300},null,3,null,null,null,3]
[6,"Assessing Answer Scripts (Final, 3 CH)",null,null,null,"(Theory) ",null,null,null,"Per Script","--",50,1000,{"$f":"T14","v":0},1000,null,4,null,null,null,4]
[7,"Assessing Answer Scripts (Final, 2 CH)",null,null,null,"(Theory) ",null,null,null,"Per Script","--",25,500,{"$f":"X14","v":0},500,null,null,null,{"$f":"SUM(S20:T23)","v":0},null,null,null,{"$f":"SUM(W20:X23)","v":0}]
[8,"Conduct of Practical (100 marks)",null,null,null,"(Final Practical)",null,null,null,"Per Student","--",30,800,{"$f":"S24","v":0},800]
[9,"Conduct of Viva-Voce (100 marks)",null,null,null,"(Final Practical)",null,null,null,"Per Student","--",30,800,{"$f":"S24","v":0},800]
[10,"Conduct of Practical (50 marks)",null,null,null,"(Final Practical)",null,null,null,"Per Student","--",25,800,{"$f":"W24","v":0},800,null,"Detail of External Examiner"]
[11,"Conduct of Viva-Voce (50 marks)",null,null,null,"(Final Practical)",null,null,null,"Per Student","--",25,800,{"$f":"W24","v":0},800,null,"S.No.","Date",null,null,"Name of Subject with Technology"]
[12,"Conduct of Viva-Voce Examination (100 marks)",null,null,null,"(External Examiner)",null,null,null,"Per Student","--",20,500,0,500,null,1]
[13,"Conduct of Practical Examination (100 marks)",null,null,null,"(External Examiner)",null,null,null,"Per Student",null,20,500,0,500,null,2]
[14,"Conduct of Viva-Voce Examination (50 marks)",null,null,null,"(External Examiner)",null,null,null,"Per Student","--",15,300,0,300,null,3]
[15,"Conduct of Practical Examination (50 marks)",null,null,null,"(External Examiner)",null,null,null,"Per Student",null,15,300,0,300,null,4]
[16,"Invigilation of Theory Examination (Morning)         (Final)",null,null,null,null,null,null,null,"Per Day",null,500,null,"--",{"$f":"K33*L33","v":0},null,5]
[17,"Factotum of Theory Examination (Morning)             (Final)",null,null,null,null,null,null,null,"Per Day",null,800,null,"--",{"$f":"K34*L34","v":0},null,6]
[18,"Invigilation of Theory Examination (Evening)           (Final)",null,null,null,null,null,null,null,"Per Day",null,650,null,"--",{"$f":"K35*L35","v":0},null,7]
[19,"Factotum of Theory Examination (Evening)               (Final)",null,null,null,null,null,null,null,"Per Day",null,1000,null,"--",{"$f":"K36*L36","v":0},null,8]
[20,"Research Guidance (Supervisor) in FYP Part - I",null,null,null,null,null,null,null,"Per Group",null,1300,null,null,{"$f":"K37*L37","v":0}]
[21,"Research Guidance (Supervisor) in FYP Part - II   ",null,null,null,null,null,null,null,"Per Group",null,1300,null,null,{"$f":"K38*L38","v":0}]
[22,"Evalution of Thesis/Project by Internal Examiner  Part - I",null,null,null,null,null,null,null,"Per Thesis",null,1500,null,null,{"$f":"K39*L39","v":0}]
[23,"Evalution of Thesis/ Project by Internal Examiner  Part - II",null,null,null,null,null,null,null,"Per Thesis",null,1500,null,null,{"$f":"K40*L40","v":0},null,"Detail of Invigilations per day(Final)"]
[24,"Viva Voce Exams of Thesis/ Project for Internal Examiner  Part - I",null,null,null,null,null,null,null,"Per Student",null,100,null,null,{"$f":"K41*L41","v":0},null,"S.No.","Date of Invigilation Duty","Morning","Evening","Name of Subject with Technology"]
[25,"Viva Voce Exams of Thesis / Project for Internal Examiner  Part - II",null,null,null,null,null,null,null,"Per Student",null,100,null,null,{"$f":"K42*L42","v":0},null,1]
[null,null,null,null,null,null,null,null,null,null,null,null,null,null,null,null,2]
["(Rupees ",null,null,{"$f":"SpellNumber(N44)","v":" "},null,null,null,null,null,"Total Amount",null,null,null,null,{"$f":"SUM(O18:O43)","v":7100},null,3]
["For Use of Examinations Dept. only.",null,null,null,null,null,null,null,null,null,null,null,null,null,null,null,4]
["Scripts delivered on _______________________",null,null,null,null,null,null,null,null,null,null,null,null,null,null,null,5]
["Due date for Awards & Scripts ______________",null,null,null,null,null,null,null,null,null,null,null,null,null,null,null,6]
["Awards & Scripts received on _______________",null,null,null,null,null,null,null,null,"Signature of the Claimant",null,null,null,null,null,null,7]
[null,null,null,null,null,null,null,null,null,null,null,null,null,null,null,null,8]
["Signature of DCE ",null,null,null,null,null,null,null,null,null,null,null,null,null,null,null,9]
["The Bill has been checked / verified and found",null,null,null,null,null,null,null,null,null,null,null,null,null,null,null,10]
["correct for payment"]
["Bill No. _____________ Page No. _______________",null,null,null,null,null,null,null,null,"Chairman / Director"]
["Date:  ______________  Amount Rs. _____________",null,null,null,null,null,null,null,null,"(Signature & Stamp)"]
[]
[]
["Signature"]
[]
[]
[null,null,null,null,null,null,null,null,null,"Controller of Examinations"]